bitfinex/quotes_SOLUSD_20250802
["timestamp","ask_amount","ask_price","bid_price","bid_amount"]
[1754129404756,26.0,163.43,163.4,0.1]
[1754129404961,43.32061244,163.42,163.4,5.49217741]
[1754129405157,69.22,163.43,163.41,5.77217741]
[1754129405367,0.16061244,163.42,163.41,5.39217741]
[1754129406186,0.16061244,163.42,163.4,0.1]
[1754129406406,43.22,163.41,163.4,0.1]
[1754129406587,43.22,163.41,163.4,5.49217741]
[1754129407092,43.22,163.41,163.4,0.1]
[1754129408496,3.18757197,163.49,163.41,16.78468397]
[1754129408694,4.54460629,163.48,163.47,5.39217741]
[1754129409397,4.54460629,163.48,163.46,5.39217741]
[1754129409697,43.26,163.47,163.45,5.39217741]
[1754129410462,26.0,163.44,163.42,0.22]
[1754129410668,26.0,163.44,163.43,5.39217741]
[1754129413269,26.0,163.44,163.43,5.61217741]
[1754129414803,26.0,163.44,163.41,0.22]
[1754129415102,26.0,163.44,163.4,0.1]
[1754129415308,26.0,163.44,163.43,5.39217741]
[1754129417204,30.5537934,163.44,163.43,5.39217741]
[1754129417819,5.2537934,163.44,163.43,5.39217741]
[1754129418030,26.0,163.42,163.4,0.1]
[1754129418242,26.0,163.42,163.41,5.39217741]
[1754129418391,26.0,163.41,163.4,0.1]
[1754129418585,69.24,163.41,163.4,0.1]
[1754129418817,69.94,163.41,163.4,0.1]
[1754129419435,48.50229583,163.41,163.4,5.49217741]
[1754129421293,47.80229583,163.41,163.4,5.49217741]
[1754129421990,48.50229583,163.41,163.4,5.49217741]
[1754129422401,48.50229583,163.41,163.4,0.1]
[1754129422608,9.13175828,163.41,163.4,5.49217741]
[1754129422808,47.76229583,163.41,163.4,5.49217741]
[1754129423011,73.76229583,163.41,163.4,5.49217741]
[1754129423892,47.76229583,163.41,163.4,5.71217741]
[1754129424226,4.56229583,163.41,163.4,5.71217741]
[1754129426032,43.18,163.44,163.4,5.71217741]
[1754129426197,43.18,163.44,163.43,5.39217741]
[1754129426395,52.3274316,163.44,163.43,5.39217741]
[1754129426595,47.7537158,163.44,163.43,5.39217741]
[1754129427629,48.4537158,163.44,163.4,0.1]
[1754129427833,9.84921469,163.43,163.41,5.39217741]
[1754129428002,48.4337158,163.42,163.41,5.39217741]
[1754129428401,53.01064823,163.42,163.4,0.1]
[1754129428607,31.2737158,163.41,163.4,5.49217741]
[1754129428810,30.5737158,163.41,163.4,5.49217741]
[1754129429210,35.15092992,163.41,163.4,5.49217741]
[1754129429904,9.15092992,163.41,163.4,5.49217741]
[1754129430103,4.5737158,163.41,163.4,5.71217741]
[1754129430409,4.5737158,163.41,163.4,5.49217741]
[1754129431429,4.57771842,163.41,163.4,5.49217741]
[1754129431835,5.23771842,163.41,163.4,5.49217741]
[1754129432310,4.57771842,163.41,163.4,5.49217741]
[1754129432733,30.57771842,163.41,163.4,5.49217741]
[1754129432936,73.75771842,163.41,163.4,5.49217741]
[1754129433247,73.75771842,163.41,163.4,0.1]
[1754129433248,78.99603856,163.41,163.4,0.1]
[1754129433627,78.99603856,163.41,163.4,5.49217741]
[1754129434032,78.99603856,163.41,163.4,0.1]
[1754129438726,101.17289994,163.41,163.4,0.1]
[1754129438941,105.25755073,163.41,163.4,0.1]
[1754129439969,105.25925927,163.41,163.4,0.1]
[1754129440250,16.78468397,163.4,163.38,0.06]
[1754129440451,61.7945753,163.39,163.38,0.06]
[1754129440653,62.4545753,163.39,163.38,0.06]
[1754129441359,67.32636784,163.39,163.38,0.06]
[1754129442033,84.11105181,163.39,163.38,0.06]
[1754129442348,110.11105181,163.39,163.38,0.06]
[1754129444672,113.19281376,163.39,163.38,0.06]
[1754129447179,87.19281376,163.39,163.38,0.06]
[1754129447377,81.80063635,163.39,163.38,0.06]
[1754129447541,87.19281376,163.39,163.38,0.06]
[1754129448267,90.37910122,163.39,163.38,0.06]
[1754129448475,86.29445043,163.39,163.38,0.06]
[1754129448787,90.3738561,163.39,163.38,0.06]
[1754129449363,84.98167869,163.39,163.38,0.06]
[1754129449583,90.3738561,163.39,163.38,0.06]
[1754129453166,86.29445043,163.39,163.38,0.06]
[1754129455594,89.49394756,163.39,163.38,0.06]
[1754129457168,88.99440475,163.39,163.38,0.06]
[1754129457372,93.56447927,163.39,163.38,0.06]
[1754129458191,45.01230186,163.39,163.38,0.06]
[1754129458495,89.40514853,163.39,163.38,0.06]
[1754129459395,40.27297112,163.39,163.38,0.06]
[1754129459566,12.33523553,163.39,163.38,5.67217741]
[1754129459768,55.41523553,163.39,163.38,5.67217741]
[1754129459993,55.41523553,163.39,163.38,0.28]
[1754129460194,55.41523553,163.39,163.38,0.06]
[1754129460886,81.32600196,163.39,163.38,0.06]
[1754129461198,80.66600196,163.39,163.38,0.06]
[1754129461501,81.32600196,163.39,163.38,0.06]
[1754129461861,80.66600196,163.39,163.38,0.06]
[1754129463301,85.41262944,163.39,163.38,0.06]
[1754129464481,91.53295504,163.39,163.38,0.06]
[1754129464906,22.17686138,163.34,163.33,0.1]
[1754129465204,74.40661934,163.34,163.33,0.1]
[1754129465579,75.06661934,163.34,163.33,0.1]
[1754129466906,52.22975796,163.34,163.33,0.1]
[1754129467291,58.28193537,163.34,163.33,0.1]
[1754129468217,75.06661934,163.34,163.33,0.1]
[1754129468516,78.25112149,163.34,163.33,0.1]
[1754129469911,55.41426011,163.34,163.33,0.1]
[1754129470111,60.80643752,163.34,163.33,0.1]
[1754129470319,17.72643752,163.34,163.33,0.1]
[1754129470525,60.80643752,163.34,163.33,0.1]
[1754129470818,17.7198331,163.34,163.33,0.1]
[1754129471003,60.7998331,163.34,163.33,0.1]
[1754129471404,17.7198331,163.34,163.33,0.1]
[1754129471588,60.7998331,163.34,163.33,0.1]
[1754129473623,55.40765569,163.34,163.33,0.1]
[1754129473823,12.32765569,163.34,163.33,0.32]
[1754129474124,50.83607892,163.34,163.33,5.71217741]
[1754129474327,76.83607892,163.34,163.33,5.71217741]
[1754129474924,76.83607892,163.34,163.33,0.1]
[1754129475431,81.41130581,163.34,163.33,0.1]
[1754129475627,55.41130581,163.34,163.33,0.1]
[1754129476005,61.46348322,163.34,163.33,0.1]
[1754129476420,60.80348322,163.34,163.33,0.1]
[1754129477330,55.41130581,163.34,163.33,0.1]
[1754129477629,60.80348322,163.34,163.33,0.1]
[1754129477839,61.46348322,163.34,163.33,0.1]
[1754129478240,56.07130581,163.34,163.33,0.1]
[1754129478436,61.46348322,163.34,163.33,0.1]
[1754129478612,56.07536833,163.34,163.33,0.1]
[1754129478818,61.46754574,163.34,163.33,0.1]
[1754129480340,56.07536833,163.34,163.33,0.1]
[1754129480648,61.46754574,163.34,163.33,0.1]
[1754129480841,78.25222971,163.34,163.33,0.1]
[1754129481023,82.34362786,163.34,163.33,0.1]
[1754129482415,82.3487942,163.34,163.33,0.1]
[1754129483122,82.350359,163.34,163.33,0.1]
[1754129485132,77.77878223,163.34,163.33,0.1]
[1754129485331,82.36444478,163.34,163.33,0.1]
[1754129486951,88.48664387,163.34,163.33,0.1]
[1754129487249,26.0,163.31,163.26,10.31071161]
[1754129487428,26.0,163.27,163.26,10.31071161]
[1754129487636,73.66566255,163.27,163.26,10.31071161]
[1754129487838,73.66566255,163.27,163.26,4.9185342]
[1754129489356,73.66566255,163.27,163.26,10.31071161]
[1754129490349,78.24886461,163.27,163.26,4.9185342]
[1754129491156,73.66566255,163.27,163.26,10.53071161]
[1754129491470,73.66566255,163.27,163.26,10.31071161]
[1754129491943,73.66566255,163.27,163.26,4.9185342]
[1754129493157,82.09418876,163.27,163.26,4.9185342]
[1754129493362,87.48636617,163.27,163.26,4.9185342]
[1754129493545,82.09418876,163.27,163.26,4.9185342]
[1754129493752,87.48636617,163.27,163.26,4.9185342]
[1754129493944,104.26724949,163.27,163.26,4.9185342]
[1754129494333,108.34936885,163.27,163.26,4.9185342]
[1754129495170,65.26936885,163.27,163.26,4.9185342]
[1754129495366,108.36936885,163.27,163.26,4.9185342]
[1754129496266,102.97260363,163.27,163.26,4.9185342]
[1754129496450,42.42791966,163.27,163.26,4.9185342]
[1754129496764,52.34376551,163.27,163.26,10.53071161]
[1754129496939,52.33762234,163.27,163.26,10.53071161]
[1754129497668,47.7618619,163.27,163.26,10.53071161]
[1754129498045,47.7618619,163.27,163.26,4.9185342]
[1754129498838,47.7618619,163.27,163.26,10.31071161]
[1754129499039,73.7618619,163.27,163.26,4.9185342]
[1754129499253,73.7618619,163.27,163.26,10.31071161]
[1754129499458,73.7618619,163.27,163.26,10.53071161]
[1754129500471,4.5818619,163.27,163.26,10.53071161]
[1754129501670,43.18,163.32,163.26,15.92288902]
[1754129501854,4.57458849,163.31,163.28,5.39217741]
[1754129502050,4.57458849,163.3,163.29,0.22]
[1754129502251,4.57458849,163.3,163.28,5.39217741]
[1754129502465,43.2,163.33,163.28,5.39217741]
[1754129502466,4.57458849,163.29,163.28,5.39217741]
[1754129502673,43.2,163.34,163.28,5.39217741]
[1754129502849,9.14940406,163.33,163.29,0.22]
[1754129503055,43.23,163.35,163.32,5.39217741]
[1754129503381,43.23,163.35,163.33,0.22]
[1754129503382,4.57467123,163.34,163.33,0.22]
[1754129504446,4.57467123,163.34,163.33,5.61217741]
[1754129506182,0.03,163.35,163.33,5.61217741]
[1754129506349,0.03,163.35,163.34,5.61217741]
[1754129506551,4.60388543,163.35,163.34,5.61217741]
[1754129506959,4.60388543,163.35,163.34,11.00435482]
[1754129507155,0.03,163.4,163.34,11.00435482]
[1754129507447,0.03,163.4,163.39,5.39217741]
[1754129508099,0.03,163.4,163.39,5.61217741]
[1754129509406,0.03,163.4,163.36,5.61217741]
[1754129509584,0.03,163.4,163.39,5.39217741]
[1754129509998,0.03,163.4,163.36,5.61217741]
[1754129510210,0.03,163.4,163.39,5.39217741]
[1754129512474,48.40891812,163.4,163.38,5.39217741]
[1754129512674,0.03,163.4,163.39,5.39217741]
[1754129514400,0.69,163.4,163.39,5.39217741]
[1754129514905,26.69,163.4,163.39,5.39217741]
[1754129516328,26.03,163.4,163.39,5.39217741]
[1754129518029,0.03,163.4,163.39,5.39217741]
[1754129519240,0.03,163.4,163.39,5.61217741]
[1754129519731,0.03,163.4,163.39,5.39217741]
[1754129520739,0.01911514,163.42,163.39,5.39217741]
[1754129520917,0.01911514,163.42,163.41,5.39217741]
[1754129523027,26.73911514,163.42,163.41,5.39217741]
[1754129524516,26.01911514,163.42,163.41,5.39217741]
[1754129526926,26.73911514,163.42,163.41,5.39217741]
[1754129527949,26.0,163.41,163.36,11.00435541]
[1754129528169,26.73911514,163.42,163.35,0.28]
[1754129528170,69.92,163.4,163.38,5.39217741]
[1754129528318,0.72,163.39,163.38,5.39217741]
[1754129529352,26.0,163.4,163.38,5.39217741]
[1754129529650,26.0,163.39,163.35,0.06]
[1754129529851,26.72,163.39,163.35,0.06]
[1754129530052,0.72,163.38,163.35,0.06]
[1754129530620,69.22,163.39,163.35,0.06]
[1754129530855,0.72,163.37,163.36,5.39217741]
[1754129532865,26.0,163.38,163.36,5.39217741]
[1754129533043,26.0,163.38,163.37,5.39217741]
[1754129533044,69.98,163.38,163.37,5.39217741]
[1754129535060,69.24,163.39,163.37,5.39217741]
[1754129535242,69.24,163.39,163.38,5.39217741]
[1754129535440,69.96,163.39,163.38,5.39217741]
[1754129537060,69.96,163.39,163.35,0.06]
[1754129537262,69.24,163.39,163.38,5.39217741]
[1754129538057,69.96,163.39,163.38,5.39217741]
[1754129538966,43.24,163.39,163.38,5.39217741]
[1754129539166,47.78889859,163.39,163.38,5.39217741]
[1754129539464,53.05836883,163.39,163.38,5.39217741]
[1754129540150,52.33836883,163.39,163.38,5.39217741]
[1754129540557,53.05836883,163.39,163.38,5.39217741]
[1754129541165,26.0,163.36,163.35,0.06]
[1754129541478,78.33579918,163.36,163.35,0.06]
[1754129541774,79.05579918,163.36,163.35,0.06]
[1754129542675,78.33579918,163.36,163.35,5.45217741]
[1754129543358,78.33579918,163.36,163.35,0.06]
[1754129543549,35.11579918,163.36,163.35,5.45217741]
[1754129544465,43.22,163.4,163.35,11.06435482]
[1754129544667,9.13279186,163.39,163.36,5.61217741]
[1754129544865,9.13279186,163.38,163.36,5.61217741]
[1754129545065,0.01911514,163.42,163.37,0.22]
[1754129545265,9.13753384,163.41,163.38,0.22]
[1754129545473,9.13753384,163.4,163.38,0.22]
[1754129545661,9.13753384,163.39,163.38,0.22]
[1754129545858,9.13753384,163.39,163.38,5.39217741]
[1754129546267,9.13753384,163.39,163.38,5.61217741]
[1754129546472,9.13753384,163.39,163.38,5.39217741]
[1754129546777,53.09753384,163.39,163.35,0.06]
[1754129547078,9.85753384,163.38,163.35,0.06]
[1754129547286,43.26,163.38,163.37,5.39217741]
[1754129547447,52.41028368,163.38,163.37,5.39217741]
[1754129547653,9.15028368,163.38,163.37,5.39217741]
[1754129547853,9.15042697,163.38,163.37,5.39217741]
[1754129548279,9.87042697,163.38,163.37,5.39217741]
[1754129549055,9.15042697,163.38,163.37,5.39217741]
[1754129549456,0.73911514,163.42,163.37,5.61217741]
[1754129549760,9.15445962,163.41,163.36,5.39217741]
[1754129549974,9.15445962,163.4,163.37,17.00468397]
[1754129550163,9.15445962,163.39,163.38,0.22]
[1754129550597,0.01911514,163.42,163.38,17.00468397]
[1754129550751,0.01911514,163.42,163.38,16.78468397]
[1754129550955,0.01911514,163.42,163.41,5.39217741]
[1754129551156,9.17431024,163.42,163.41,5.39217741]
[1754129551363,4.59671269,163.42,163.41,5.39217741]
[1754129551881,9.17432663,163.42,163.41,5.39217741]
[1754129552681,4.59671269,163.42,163.41,5.39217741]
[1754129554484,0.01911514,163.42,163.41,5.39217741]
[1754129557670,0.03,163.44,163.41,11.00435482]
[1754129558009,0.03,163.44,163.43,10.78435482]
[1754129558170,0.03,163.44,163.43,5.39217741]
[1754129559079,0.03,163.44,163.39,43.004684]
[1754129559080,0.7,163.44,163.39,17.004684]
[1754129559290,0.7,163.44,163.43,5.39217741]
[1754129559799,5.27186822,163.44,163.43,5.39217741]
[1754129561675,26.0,163.42,163.35,0.06]
[1754129562015,57.79570185,163.41,163.36,5.39217741]
[1754129562200,15.20570185,163.4,163.36,5.39217741]
[1754129562501,9.81352444,163.39,163.36,5.39217741]
[1754129562673,4.57154638,163.38,163.35,0.06]
[1754129562872,9.14567545,163.37,163.35,0.06]
[1754129563102,0.67,163.37,163.35,5.45217741]
[1754129563303,43.97,163.37,163.35,5.45217741]
[1754129563602,0.67,163.36,163.35,5.45217741]
[1754129563772,0.67,163.36,163.35,0.06]
[1754129563978,9.81561383,163.36,163.35,0.06]
[1754129566205,35.81561383,163.36,163.35,0.06]
[1754129567180,35.81561383,163.36,163.33,5.39217741]
[1754129567383,9.81561383,163.35,163.33,5.39217741]
[1754129567600,5.2427458,163.34,163.33,5.39217741]
[1754129567809,53.09421825,163.34,163.3,106.4512903]
[1754129567983,41.20639566,163.33,163.3,101.05911289]
[1754129568181,9.81366207,163.32,163.3,101.05911289]
[1754129568386,48.52218962,163.31,163.3,101.05911289]
[1754129569007,53.09281759,163.31,163.3,101.05911289]
[1754129569375,48.52218962,163.31,163.3,101.05911289]
[1754129570903,48.52218962,163.31,163.29,5.39217741]
[1754129571101,26.0,163.32,163.3,5.39217741]
[1754129571284,69.26,163.32,163.31,5.39217741]
[1754129571481,0.67,163.35,163.28,5.61217741]
[1754129571717,52.39144014,163.34,163.31,5.39217741]
[1754129571900,5.23572007,163.33,163.26,48.3985342]
[1754129572085,0.67,163.33,163.31,5.39217741]
[1754129572688,0.67,163.32,163.31,5.39217741]
[1754129572907,43.93,163.34,163.31,5.39217741]
[1754129573088,4.56505285,163.33,163.31,5.39217741]
[1754129573408,0.67,163.33,163.31,5.39217741]
[1754129573620,0.67,163.33,163.32,5.39217741]
[1754129573796,5.2342483,163.33,163.32,5.39217741]
[1754129574305,0.67,163.33,163.32,5.39217741]
[1754129575014,43.26,163.34,163.32,5.39217741]
[1754129575307,43.26,163.34,163.33,5.39217741]
[1754129575518,47.82271873,163.34,163.29,0.22]
[1754129575816,47.82271873,163.34,163.33,5.39217741]
[1754129575817,43.26,163.34,163.33,5.39217741]
[1754129576020,48.49265835,163.34,163.33,5.39217741]
[1754129576512,43.93,163.34,163.33,5.39217741]
[1754129579807,43.93,163.34,163.28,5.39217741]
[1754129580005,5.23135032,163.33,163.29,5.39217741]
[1754129580205,43.89,163.32,163.29,5.39217741]
[1754129580418,0.67,163.31,163.3,5.39217741]
[1754129581918,26.0,163.32,163.3,5.39217741]
[1754129582220,0.71,163.31,163.29,5.39217741]
[1754129582398,43.95,163.31,163.26,4.9185342]
[1754129582593,0.71,163.3,163.28,5.39217741]
[1754129582793,0.71,163.29,163.26,4.9185342]
[1754129583030,43.24,163.31,163.28,5.39217741]
[1754129583348,48.63217741,163.31,163.26,4.9185342]
[1754129583634,0.71,163.3,163.26,10.31071161]
[1754129583838,43.28,163.29,163.26,10.31071161]
[1754129584009,0.71,163.28,163.26,10.31071161]
[1754129584211,0.71,163.27,163.26,10.31071161]
[1754129585748,43.28,163.29,163.26,10.31071161]
[1754129586046,43.28,163.29,163.28,5.39217741]
[1754129586226,43.28,163.29,163.26,4.9185342]
[1754129586539,172.1,163.32,163.26,4.9185342]
[1754129586540,172.1,163.32,163.28,5.39217741]
[1754129586756,43.28,163.31,163.27,0.22]
[1754129587236,43.218,163.31,163.27,0.22]
[1754129588023,43.218,163.31,163.29,5.39217741]
[1754129588520,43.218,163.31,163.3,5.39217741]
[1754129588736,43.928,163.31,163.3,5.39217741]
[1754129590111,43.928,163.31,163.29,5.39217741]
[1754129590312,43.928,163.31,163.3,5.39217741]
[1754129592050,43.218,163.31,163.3,5.39217741]
[1754129592629,26.0,163.32,163.3,5.39217741]
[1754129592847,26.0,163.32,163.31,5.39217741]
[1754129593658,26.0,163.32,163.3,5.39217741]
[1754129593659,26.71,163.32,163.3,5.39217741]
[1754129593956,26.0,163.32,163.31,5.39217741]
[1754129594156,26.0,163.32,163.28,5.39217741]
[1754129594455,43.26,163.31,163.28,5.39217741]
[1754129594842,0.71,163.3,163.28,5.39217741]
[1754129595152,0.71,163.29,163.28,5.39217741]
[1754129597035,43.26,163.31,163.26,4.9185342]
[1754129597238,0.71,163.3,163.29,5.39217741]
[1754129597653,0.71,163.3,163.28,5.39217741]
[1754129598139,0.71,163.29,163.28,5.39217741]
[1754129598767,43.26,163.31,163.28,5.39217741]
[1754129598933,43.97,163.31,163.3,5.39217741]
[1754129599139,43.97,163.31,163.26,4.9185342]
[1754129599339,0.71,163.3,163.27,5.39217741]
[1754129599645,0.71,163.3,163.26,4.9185342]
[1754129599646,43.26,163.29,163.26,10.31071161]
[1754129599853,0.71,163.28,163.26,10.31071161]
[1754129600671,0.71,163.28,163.27,5.39217741]
[1754129601759,43.26,163.29,163.27,5.39217741]
[1754129601969,43.95,163.31,163.28,5.39217741]
[1754129602134,43.24,163.31,163.3,5.39217741]
[1754129602477,4.56318697,163.31,163.3,5.39217741]
[1754129602775,5.27318697,163.31,163.29,5.39217741]
[1754129602936,0.71,163.3,163.26,4.9185342]
[1754129603153,0.71,163.3,163.29,5.39217741]
[1754129603380,5.27758656,163.3,163.29,5.39217741]
[1754129604383,9.84904126,163.3,163.29,5.39217741]
[1754129604852,9.13904126,163.3,163.29,5.39217741]
[1754129608568,4.56758656,163.3,163.29,5.61217741]
[1754129609572,9.15460625,163.3,163.29,5.61217741]
[1754129610087,9.15460625,163.3,163.29,5.39217741]
[1754129610373,9.1555701,163.3,163.29,5.39217741]
[1754129611159,0.66,163.33,163.29,5.39217741]
[1754129611368,9.1768885,163.32,163.28,5.39217741]
[1754129611565,9.1768885,163.31,163.28,5.39217741]
[1754129611762,0.66,163.33,163.28,5.39217741]
[1754129611973,9.17689066,163.32,163.28,5.39217741]
[1754129612178,9.17689066,163.31,163.28,5.39217741]
[1754129612489,0.66,163.33,163.28,5.39217741]
[1754129612797,9.8373239,163.32,163.28,5.39217741]
[1754129612969,9.1773239,163.31,163.28,5.39217741]
[1754129613286,0.66,163.32,163.28,5.39217741]
[1754129613582,9.17654958,163.31,163.28,5.39217741]
[1754129613885,146.1,163.34,163.3,5.39217741]
[1754129614063,9.17654634,163.33,163.28,5.61217741]
[1754129614377,9.17654634,163.32,163.29,0.22]
[1754129614679,4.58827587,163.31,163.28,5.39217741]
[1754129614869,0.66,163.33,163.28,5.61217741]
[1754129615074,9.17587002,163.32,163.28,5.39217741]
[1754129615255,4.58793501,163.31,163.28,5.39217741]
[1754129615451,0.66,163.31,163.26,4.9185342]
[1754129615657,0.66,163.31,163.3,5.39217741]
[1754129615857,9.83610078,163.31,163.3,5.39217741]
[1754129617784,9.83610078,163.31,163.26,4.9185342]
[1754129617966,9.83610078,163.3,163.29,5.39217741]
[1754129618562,9.83610078,163.3,163.26,4.9185342]
[1754129618774,9.17610078,163.29,163.26,5.1385342]
[1754129619088,0.66,163.31,163.26,4.9185342]
[1754129619289,9.17671466,163.3,163.26,4.9185342]
[1754129619581,4.58835625,163.29,163.26,4.9185342]
[1754129619780,0.66,163.3,163.26,4.9185342]
[1754129619957,5.24828379,163.29,163.26,4.9185342]
[1754129620158,43.22,163.32,163.28,5.39217741]
[1754129620355,9.17718046,163.31,163.29,5.39217741]
[1754129620571,9.17718046,163.3,163.29,5.39217741]
[1754129621089,9.83718046,163.3,163.29,5.39217741]
[1754129625683,9.83718046,163.3,163.26,4.9185342]
[1754129625877,9.83718046,163.29,163.28,5.39217741]
[1754129626080,9.83718046,163.29,163.26,4.9185342]
[1754129626081,26.0,163.27,163.26,4.9185342]
[1754129626285,35.83718046,163.27,163.26,4.9185342]
[1754129627777,35.8378576,163.27,163.26,4.9185342]
[1754129630681,35.83538849,163.27,163.26,4.9185342]
[1754129632608,78.97538849,163.27,163.26,4.9185342]
[1754129634014,84.3675659,163.27,163.26,4.9185342]
[1754129634691,105.24021114,163.27,163.26,4.9185342]
[1754129637136,105.24021114,163.27,163.26,1.84927973]
[1754129639307,100.65094377,163.27,163.26,1.84927973]
[1754129639501,105.22658701,163.27,163.26,1.84927973]
[1754129640715,101.13862574,163.27,163.26,1.84927973]
[1754129641314,104.34223685,163.27,163.26,1.84927973]
[1754129641493,61.20223685,163.27,163.26,1.84927973]
[1754129641699,104.36223685,163.27,163.26,1.84927973]
[1754129644104,104.35830351,163.27,163.26,1.84927973]
[1754129645522,107.55563149,163.27,163.26,1.84927973]
[1754129646998,107.53828946,163.27,163.26,1.84927973]
[1754129649638,106.87828946,163.27,163.26,1.84927973]
[1754129649930,107.52828946,163.27,163.26,1.84927973]
[1754129651120,15.54142808,163.27,163.26,1.84927973]
[1754129651322,55.49781697,163.27,163.26,1.84927973]
[1754129651931,76.92903788,163.27,163.26,1.84927973]
[1754129652349,50.92903788,163.27,163.26,2.06927973]
[1754129652528,76.92903788,163.27,163.26,2.06927973]
[1754129652732,76.92903788,163.27,163.26,1.84927973]
[1754129654049,61.53838482,163.27,163.26,1.84927973]
[1754129654848,78.32306879,163.27,163.26,1.84927973]
[1754129655747,78.32486635,163.27,163.26,1.84927973]
[1754129658461,75.12753837,163.27,163.26,1.84927973]
[1754129659356,79.20694014,163.27,163.26,1.84927973]
[1754129659549,85.33176405,163.27,163.26,1.84927973]
[1754129660476,26.0,163.15,163.11,0.28]
[1754129660781,52.31460672,163.14,163.12,5.39217741]
[1754129660933,52.31460672,163.14,163.1,2.457229]
[1754129660934,4.57730336,163.13,163.1,1.457229]
[1754129661136,52.31559084,163.12,163.1,1.737229]
[1754129661332,43.16,163.12,163.07,0.28]
[1754129661575,43.16,163.12,163.08,0.28]
[1754129661748,43.16,163.12,163.03,101.22754903]
[1754129661749,4.57459446,163.11,163.09,5.39217741]
[1754129661950,43.16,163.1,163.09,5.67217741]
[1754129662263,43.16,163.11,163.09,5.67217741]
[1754129662565,43.16,163.12,163.1,5.67217741]
[1754129662734,43.16,163.12,163.11,0.28]
[1754129662935,47.73113389,163.12,163.11,5.67217741]
[1754129663243,43.16,163.14,163.11,5.67217741]
[1754129663460,43.16,163.14,163.12,0.28]
[1754129663688,43.16,163.14,163.12,5.39217741]
[1754129664648,43.16,163.14,163.13,5.39217741]
[1754129664852,43.16,163.14,163.13,5.67217741]
[1754129665156,47.72805257,163.14,163.13,5.67217741]
[1754129665354,4.56805257,163.14,163.13,5.67217741]
[1754129665554,69.2,163.15,163.13,5.67217741]
[1754129665754,69.2,163.15,163.14,5.39217741]
[1754129665946,35.13286314,163.15,163.14,5.39217741]
[1754129666275,4.56643157,163.15,163.14,5.39217741]
[1754129666763,9.13227771,163.15,163.14,5.39217741]
[1754129667278,4.56643157,163.15,163.14,5.67217741]
[1754129668856,43.18,163.17,163.14,5.67217741]
[1754129669075,4.56527368,163.16,163.15,0.28]
[1754129669846,43.18,163.17,163.15,0.28]
[1754129670380,43.18,163.17,163.16,5.39217741]
[1754129670560,52.31252448,163.17,163.16,5.39217741]
[1754129672055,9.13252448,163.17,163.16,5.39217741]
[1754129672272,9.13265511,163.17,163.16,5.67217741]
[1754129672563,4.56626224,163.17,163.16,5.67217741]
[1754129672776,69.18,163.19,163.16,5.67217741]
[1754129672977,4.56602621,163.18,163.15,0.06]
[1754129673182,69.18,163.19,163.17,5.67217741]
[1754129673384,4.56632081,163.18,163.17,0.28]
[1754129673693,4.56632081,163.18,163.15,0.34]
[1754129673863,69.18,163.19,163.15,0.34]
[1754129674193,9.79285976,163.18,163.15,0.06]
[1754129674379,43.16,163.17,163.15,0.06]
[1754129674691,43.16,163.17,163.16,5.39217741]
[1754129675068,43.82,163.17,163.16,5.39217741]
[1754129675461,43.16,163.17,163.16,5.39217741]
[1754129676072,16.78468397,163.25,163.16,5.67217741]
[1754129676073,5.39217741,163.25,163.16,5.67217741]
[1754129676412,26.0,163.22,163.21,5.39217741]
[1754129676573,35.1337568,163.22,163.21,5.39217741]
[1754129676771,78.3137568,163.22,163.21,5.39217741]
[1754129677178,52.3137568,163.22,163.21,5.39217741]
[1754129679294,52.9737568,163.22,163.21,5.39217741]
[1754129680199,48.4068784,163.22,163.21,5.39217741]
[1754129680411,52.97616496,163.22,163.21,5.39217741]
[1754129681274,4.5668784,163.22,163.21,5.39217741]
[1754129681683,4.5668784,163.23,163.21,5.39217741]
[1754129681878,43.16,163.24,163.2,0.28]
[1754129681879,4.5668784,163.22,163.2,0.28]
[1754129682087,43.16,163.24,163.2,0.28]
[1754129682403,43.16,163.24,163.21,0.28]
[1754129682593,69.16,163.25,163.18,16.78468397]
[1754129682798,9.13801514,163.24,163.19,0.28]
[1754129682994,43.16,163.25,163.23,5.39217741]